bitfinex/quotes_ETHUSD_20260108
["timestamp","ask_amount","ask_price","bid_price","bid_amount"]
[1767886656645,3.23352518,3092.6,3091.2,0.9366134]
[1767886656980,6.46705036,3092.6,3091.2,0.9366134]
[1767886657179,3.23352518,3092.6,3091.4,0.9356134]
[1767886658061,6.46705036,3092.6,3091.4,4.17036455]
[1767886658261,0.04042037,3092.5,3091.2,0.9366134]
[1767886658460,0.95213447,3092.5,3091.2,0.001]
[1767886658662,0.95213577,3092.4,3091.2,0.001]
[1767886658982,0.847,3092.3,3091.3,0.9356134]
[1767886659189,0.847,3092.3,3091.2,0.001]
[1767886659365,0.847,3092.3,3091.2,0.32460465]
[1767886659873,0.847,3092.3,3091.2,0.001]
[1767886660077,3.23394347,3092.2,3091.2,0.001]
[1767886660280,3.23388411,3092.3,3091.2,0.9366134]
[1767886660461,6.46776822,3092.3,3091.2,0.001]
[1767886661054,3.23388411,3092.3,3091.2,0.001]
[1767886661259,3.23388411,3092.3,3091.2,0.9366134]
[1767886661581,6.46579592,3093.2,3091.3,0.9356134]
[1767886661884,0.847,3092.8,3091.5,0.9356134]
[1767886662097,4.65191709,3093.4,3091.7,0.9356134]
[1767886662098,3.23310701,3093.0,3091.7,0.9356134]
[1767886662759,4.08004848,3093.1,3091.7,0.9356134]
[1767886662977,6.46609696,3093.1,3091.7,0.9356134]
[1767886663195,4.08004848,3093.1,3091.7,0.9356134]
[1767886663376,3.23304848,3093.1,3091.9,0.9356134]
[1767886663579,3.23294442,3093.2,3091.9,0.9356134]
[1767886663795,0.002,3092.3,3091.9,1.03229403]
[1767886664093,0.68715974,3093.4,3092.3,0.9356134]
[1767886664386,0.002,3092.6,3092.3,4.16940647]
[1767886664686,0.002,3092.6,3092.4,0.41694065]
[1767886664857,0.002,3092.6,3092.0,3.23413175]
[1767886665057,0.002,3092.6,3092.2,3.23385195]
[1767886665487,0.002,3092.6,3092.3,3.23381843]
[1767886665684,3.23279345,3093.3,3092.3,4.16943183]
[1767886665883,3.23279345,3093.3,3092.3,7.40327072]
[1767886666183,3.23279345,3093.3,3092.4,0.74032707]
[1767886666184,6.4655869,3093.3,3092.4,0.74032707]
[1767886666387,6.4653779,3093.4,3092.3,0.9356134]
[1767886666587,6.4653779,3093.4,3092.2,3.23390501]
[1767886666957,6.4653779,3093.4,3092.3,3.23379292]
[1767886667478,6.4653779,3093.4,3092.2,3.23389245]
[1767886667666,7.3123779,3093.4,3092.2,3.23393902]
[1767886667863,1.05450014,3093.3,3092.3,0.41695524]
[1767886668298,3.23289796,3093.2,3092.3,0.41695524]
[1767886668484,3.23282585,3093.3,3092.3,7.82020113]
[1767886668692,3.23227099,3093.8,3092.4,0.9356134]
[1767886668989,1.1704271,3093.7,3092.5,0.78202011]
[1767886669585,1.1704271,3093.7,3092.5,1.71763351]
[1767886669980,1.1704271,3093.7,3092.6,0.9356134]
[1767886670794,3.2342199,3093.9,3092.8,0.9356134]
[1767886670992,6.4664398,3093.9,3092.8,0.9356134]
[1767886671989,3.2342199,3093.9,3092.8,0.9356134]
[1767886672762,6.4664398,3093.9,3092.9,4.16882494]
[1767886672991,6.4664398,3093.9,3093.0,0.41688249]
[1767886675085,0.002,3093.9,3093.0,0.41688249]
[1767886675285,0.002,3093.9,3092.9,0.9356134]
[1767886675669,0.002,3093.9,3093.0,3.23309022]
[1767886676107,0.002,3093.9,3093.0,7.40181063]
[1767886676403,0.002,3093.9,3093.1,0.9356134]
[1767886676989,0.002,3093.6,3093.2,4.16851136]
[1767886677208,0.002,3093.9,3093.4,0.9356134]
[1767886677498,0.002,3094.2,3093.5,0.9356134]
[1767886678072,3.23103746,3095.0,3094.0,0.9356134]
[1767886678266,0.002,3095.2,3094.0,0.9356134]
[1767886678267,6.46192087,3095.1,3094.0,0.9356134]
[1767886678891,3.23091337,3095.1,3094.0,0.9356134]
[1767886679196,6.46173319,3095.2,3094.1,4.16757099]
[1767886679398,7.28377792,3095.2,3094.2,0.4167571]
[1767886679566,9.86e-06,3095.2,3094.2,1.3523705]
[1767886679766,9.86e-06,3095.2,3094.2,0.4167571]
[1767886680005,9.86e-06,3095.2,3094.1,3.23195759]
[1767886680626,9.86e-06,3095.2,3094.1,7.39952858]
[1767886680772,9.86e-06,3095.2,3094.2,0.9356134]
[1767886681287,1.75772396,3095.2,3093.7,4.16793355]
[1767886681488,0.04038641,3095.1,3093.9,3.23214723]
[1767886681801,0.17981104,3095.0,3094.0,3.23199605]
[1767886682106,1.75772396,3095.2,3094.3,0.9356134]
[1767886682107,9.86e-06,3095.2,3094.3,0.9356134]
[1767886683274,9.86e-06,3095.2,3094.4,6.46328852]
[1767886683698,9.86e-06,3095.2,3094.4,7.45536487]
[1767886684077,9.86e-06,3095.2,3094.4,6.46328852]
[1767886685088,0.92538108,3096.3,3094.8,0.96498537]
[1767886685290,0.002,3096.3,3095.0,0.96498537]
[1767886685608,0.846,3096.2,3095.2,0.96498537]
[1767886686193,3.23171511,3096.3,3095.2,0.96498537]
[1767886686394,6.50180098,3096.3,3095.1,1.06583518]
[1767886686707,3.23171511,3096.3,3095.1,1.06583518]
[1767886686893,3.23171511,3096.3,3095.1,2.03082055]
[1767886687098,0.002,3096.3,3095.2,1.16806743]
[1767886687299,0.002,3096.3,3095.4,0.96498537]
[1767886687504,0.002,3097.1,3095.7,0.96498537]
[1767886687810,0.002,3097.1,3095.8,0.96498537]
[1767886688384,0.002,3097.1,3096.0,0.96498537]
[1767886688579,3.55393512,3097.1,3096.0,0.96498537]
[1767886688903,6.78279479,3097.1,3096.0,0.96498537]
[1767886689306,6.78279479,3097.1,3095.7,0.94168063]
[1767886689607,6.78279479,3097.1,3095.9,4.19497147]
[1767886689991,3.55393512,3097.1,3096.0,3.22994658]
[1767886690187,0.67826856,3097.0,3096.0,3.64943978]
[1767886690512,3.55393512,3097.1,3096.1,0.96498537]
[1767886690682,6.78279479,3097.1,3096.1,0.96498537]
[1767886691082,3.55393512,3097.1,3096.1,0.96498537]
[1767886691282,3.55393512,3097.1,3096.1,4.19481189]
[1767886691913,6.78279479,3097.1,3096.0,0.4194932]
[1767886692208,6.78279479,3097.1,3095.7,1.80998537]
[1767886692209,0.32507545,3097.1,3096.2,0.96498537]
[1767886692411,0.002,3097.1,3096.2,0.96498537]
[1767886692616,3.23083211,3097.1,3096.2,0.96498537]
[1767886693000,0.002,3097.1,3096.2,0.96498537]
[1767886693395,0.002,3097.1,3096.4,0.96498537]
[1767886694919,0.002,3097.1,3096.2,3.22972455]
[1767886695118,0.002,3097.1,3096.1,0.96498537]
[1767886695317,0.002,3097.1,3095.7,0.96498537]
[1767886695505,0.96374272,3097.0,3095.5,0.001]
[1767886695711,4.67103641,3096.8,3095.5,0.001]
[1767886695928,0.92338108,3096.6,3095.5,0.001]
[1767886696110,1.14472389,3096.5,3095.5,0.001]
[1767886696427,0.92338108,3096.3,3095.5,0.001]
[1767886696595,0.88636946,3096.4,3095.5,0.001]
[1767886697430,6.4593224,3096.3,3095.5,0.001]
[1767886700095,3.2296612,3096.3,3095.5,0.001]
[1767886700331,3.22893122,3097.0,3095.5,0.96598537]
[1767886700528,0.92338108,3096.7,3095.5,0.001]
[1767886700720,1.76938108,3096.7,3095.5,0.001]
[1767886701024,0.92338108,3096.7,3095.5,0.001]
[1767886701605,0.92338108,3096.7,3095.5,6.46199176]
[1767886701810,0.92338108,3096.7,3095.6,0.65586724]
[1767886702326,0.92338108,3096.7,3095.6,0.75254787]
[1767886702916,3.22914475,3096.8,3095.6,0.75254787]
[1767886702917,3.22914475,3096.8,3095.7,0.96498537]
[1767886703131,6.45834487,3096.8,3095.6,0.65586724]
[1767886703331,9.68754499,3096.8,3095.6,0.65586724]
[1767886703539,9.68754499,3096.8,3095.5,0.001]
[1767886703540,9.6883578,3096.5,3095.5,0.001]
[1767886703699,0.846,3096.4,3095.5,0.001]
[1767886704342,0.88636946,3096.4,3095.5,0.001]
[1767886705210,0.846,3096.4,3095.5,0.001]
[1767886705408,0.82282863,3096.3,3095.5,0.001]
[1767886705609,3.22893122,3097.0,3095.7,0.96498537]
[1767886705927,0.04036294,3096.9,3095.5,0.001]
[1767886706130,0.04036424,3096.8,3095.5,0.001]
[1767886706432,0.846,3096.7,3095.5,0.001]
[1767886706737,0.96374793,3096.6,3095.5,0.001]
[1767886707039,0.18097479,3096.5,3095.5,0.001]
[1767886707413,0.04036685,3096.6,3095.5,0.001]
[1767886707922,6.4589052,3096.5,3095.5,0.001]
[1767886708230,0.04036946,3096.4,3095.5,0.001]
[1767886708433,0.96375054,3096.4,3094.3,0.96498537]
[1767886708732,13.84119148,3096.5,3094.8,3.23114992]
[1767886708946,13.84119148,3096.5,3094.8,0.64625048]
[1767886708947,1.38411915,3096.4,3094.8,0.64625048]
[1767886709110,2.34786969,3096.4,3094.7,0.96498537]
[1767886709314,0.846,3096.3,3094.7,0.96498537]
[1767886709639,0.04037206,3096.2,3094.7,0.96498537]
[1767886710145,0.92338108,3096.0,3094.3,0.96498537]
[1767886710340,0.92338108,3096.0,3094.2,4.0768045]
[1767886710341,0.92338108,3095.9,3094.2,3.23179584]
[1767886710515,0.846,3095.8,3094.4,3.23163291]
[1767886710703,0.846,3095.8,3094.3,1.38466349]
[1767886710906,0.846,3095.8,3094.3,0.96498537]
[1767886711341,0.846,3095.8,3094.3,4.19670132]
[1767886711563,0.96375706,3095.9,3094.8,0.96498537]
[1767886711564,0.04037598,3095.9,3094.8,0.96498537]
[1767886711708,6.45973966,3096.1,3094.8,0.96498537]
[1767886711905,6.46015698,3095.9,3094.5,3.23152068]
[1767886712109,6.46015698,3095.9,3094.7,0.96498537]
[1767886713727,3.23007849,3095.9,3094.7,0.96498537]
[1767886713931,6.46015698,3095.9,3094.7,0.96498537]
[1767886714117,6.46015698,3095.9,3094.7,4.19626903]
[1767886714323,6.46015698,3095.9,3094.8,0.46255877]
[1767886714726,6.46015698,3095.9,3095.0,0.001]
[1767886714932,0.04037728,3095.8,3095.0,0.001]
[1767886715261,0.846,3095.7,3095.0,0.001]
[1767886716116,6.46078304,3095.6,3094.2,3.23178777]
[1767886716316,6.46078304,3095.6,3094.2,6.46364091]
[1767886716658,1.14556305,3095.5,3094.3,1.68463749]
[1767886716860,3.23039152,3095.6,3094.4,0.94388491]
[1767886717033,6.46078304,3095.6,3094.4,0.94388491]
[1767886717356,3.23039152,3095.6,3094.4,0.94388491]
[1767886717560,6.46078304,3095.6,3094.4,0.94388491]
[1767886717918,0.91846745,3095.5,3094.1,3.23192044]
[1767886718142,6.46140922,3095.3,3093.8,7.40842689]
[1767886718542,3.23070461,3095.3,3093.9,1.04056554]
[1767886719155,4.07670461,3095.3,3093.9,1.04056554]
[1767886719317,6.46140922,3095.3,3094.0,1.07373785]
[1767886719517,7.30740922,3095.3,3094.0,1.07373785]
[1767886719748,4.07670461,3095.3,3094.0,1.07373785]
[1767886719934,4.07670461,3095.3,3094.0,2.01762276]
[1767886720656,4.07670461,3095.3,3094.1,6.46391518]
[1767886720821,4.07670461,3095.3,3094.2,0.84815379]
[1767886721017,0.91846745,3095.9,3094.3,0.94388491]
[1767886721249,3.22984529,3096.2,3094.6,0.94388491]
[1767886721549,4.07584529,3096.2,3094.8,0.94388491]
[1767886721854,3.22969799,3096.3,3095.0,0.94388491]
[1767886722038,3.23155703,3096.4,3095.2,0.94388491]
[1767886722239,3.23155703,3096.4,3095.1,0.28523718]
[1767886722240,6.46111406,3096.4,3095.1,0.28523718]
[1767886722952,0.002,3096.4,3095.2,7.40550289]
[1767886724021,0.002,3096.4,3095.2,4.1746939]
[1767886724444,0.04236946,3096.4,3095.2,4.1746939]
[1767886724635,0.65012747,3096.3,3095.2,4.93411718]
[1767886724837,3.22976551,3096.2,3095.2,8.16492617]
[1767886725037,4.07576551,3096.2,3095.3,0.94388491]
[1767886725568,0.91846745,3096.1,3095.1,0.18855655]
[1767886725767,0.04037467,3096.0,3094.1,0.94388491]
[1767886725931,0.91846745,3095.9,3094.4,3.23159173]
[1767886726132,0.91846745,3095.7,3093.8,0.845]
[1767886726350,0.91846745,3095.5,3094.1,3.23190032]
[1767886726565,0.95884864,3095.5,3094.2,3.23179581]
[1767886726760,6.46140922,3095.3,3094.3,0.32317958]
[1767886728227,6.46140922,3095.3,3094.0,0.94388491]
[1767886728430,6.46140922,3095.3,3094.7,0.001]
[1767886728629,9.69211383,3095.3,3093.8,0.845]
[1767886728846,9.69211383,3095.3,3093.9,3.23209272]
[1767886729039,6.46140922,3095.3,3093.9,3.23209272]
[1767886729262,0.66418941,3095.2,3094.0,0.40770927]
[1767886729466,0.846,3095.1,3094.0,0.40770927]
[1767886730042,4.66612278,3094.7,3092.9,1.59965424]
[1767886730235,0.846,3094.6,3093.0,0.94388491]
[1767886730429,0.846,3094.6,3093.2,3.23285308]
[1767886730830,0.846,3094.5,3093.1,3.23291488]
[1767886731163,0.846,3094.5,3093.0,0.94388491]
[1767886731375,0.73088708,3094.4,3093.0,0.94388491]
[1767886731562,1.64935453,3094.4,3092.8,3.23329264]
[1767886732068,1.64935453,3094.4,3092.6,0.94388491]
[1767886732300,0.91846745,3094.3,3092.8,3.23327812]
[1767886732590,0.91846745,3094.3,3092.7,3.23333663]
[1767886732765,0.16493545,3094.2,3092.8,0.41772215]
[1767886732964,6.46391518,3094.1,3092.7,6.4668124]
[1767886733166,0.846,3094.0,3092.8,0.94388491]
[1767886733667,0.846,3093.9,3092.3,4.17763366]
[1767886733860,3.74765533,3093.7,3092.1,3.23394691]
[1767886734085,0.846,3093.9,3092.2,3.23392407]
[1767886734086,1.29323298,3093.6,3092.2,3.23392407]
[1767886734286,0.91846745,3093.6,3092.2,3.23392407]
[1767886734488,0.91846745,3093.6,3092.1,3.97524041]
[1767886734670,0.91846745,3093.6,3092.3,3.23382241]
[1767886734867,0.91846745,3094.1,3092.2,4.17780949]
[1767886735074,0.846,3094.0,3092.3,0.94388491]
[1767886735268,1.14603402,3093.9,3092.5,0.94388491]
[1767886735862,1.99203402,3093.9,3092.5,0.94388491]
[1767886737068,6.46454198,3093.8,3092.5,0.94388491]
[1767886737270,0.91846745,3093.7,3092.1,0.94388491]
[1767886737464,1.97999549,3093.6,3092.1,0.94388491]
[1767886737688,0.846,3093.5,3092.5,3.2336146]
[1767886738197,0.846,3093.4,3092.4,3.23368852]
[1767886738776,1.06152804,3093.6,3092.1,0.94388491]
[1767886738980,0.846,3093.6,3092.2,3.23388068]
[1767886739174,10.6162208,3093.5,3092.0,0.94388491]
[1767886739379,10.6162208,3093.5,3092.2,3.23390057]
[1767886739380,7.38363635,3093.5,3092.2,3.23390057]
[1767886740195,0.846,3093.4,3092.2,3.23390057]
[1767886740372,0.846,3093.4,3092.1,3.23400218]
[1767886740569,3.23258445,3093.5,3092.3,0.94388491]
[1767886740903,3.23195759,3094.1,3092.3,0.94388491]
[1767886741100,0.846,3093.8,3092.3,0.94388491]
[1767886741296,3.23237547,3093.7,3092.5,0.94388491]
[1767886741465,0.846,3093.8,3092.5,0.94388491]
[1767886741668,3.23199053,3094.1,3092.7,0.94388491]
[1767886741869,0.846,3094.0,3092.7,0.94388491]
[1767886743172,4.0780828,3094.0,3092.9,0.95926864]
[1767886743373,6.46307964,3094.5,3092.9,0.95926864]
[1767886743704,1.49230796,3094.4,3093.1,0.95926864]
[1767886743901,0.846,3094.4,3093.1,0.95926864]
[1767886744068,3.23153982,3094.5,3093.1,0.95926864]
[1767886744273,0.846,3094.4,3093.1,0.95926864]
[1767886745377,3.23174869,3094.3,3093.2,6.46579592]
[1767886745576,4.07768704,3094.4,3093.2,6.46579592]
[1767886745869,4.80860758,3094.4,3093.3,0.74250646]
[1767886746089,0.73092054,3094.4,3093.3,0.74250646]
[1767886746281,0.846,3094.5,3093.3,0.74250646]
[1767886746484,0.846,3094.5,3093.3,1.66407009]
[1767886746699,3.23138435,3094.7,3093.4,0.92156363]
[1767886746905,3.23099416,3095.1,3093.4,0.92156363]
[1767886747203,0.32309942,3095.0,3093.5,1.08797064]
[1767886747402,0.32309942,3095.0,3093.7,0.92156363]
[1767886747576,4.07694121,3095.1,3093.7,0.92156363]
[1767886748191,0.99671169,3095.0,3093.5,0.16640701]
[1767886748393,0.99671169,3094.8,3092.9,0.92156363]
[1767886748714,3.74765533,3094.9,3092.9,0.92156363]
[1767886748715,0.99671169,3094.6,3093.5,3.23255343]
[1767886748898,0.846,3094.5,3093.5,6.46513788]
[1767886749314,0.846,3094.6,3093.4,0.92156363]
[1767886749516,7.45812091,3095.3,3093.6,0.92156363]
[1767886749696,6.46036564,3095.8,3093.6,0.92156363]
[1767886750009,0.846,3095.4,3093.6,0.92156363]
[1767886750374,0.0403838,3095.3,3093.7,0.92156363]
[1767886750576,0.99671169,3095.2,3093.3,4.15435708]
[1767886750775,0.99671169,3094.7,3093.2,3.23287639]
[1767886751072,0.88639294,3094.6,3093.2,6.46577435]
[1767886751469,3.23153982,3094.5,3093.1,0.92156363]
[1767886751675,1.25375398,3094.4,3093.3,0.92156363]
[1767886751891,0.846,3094.3,3093.3,0.92156363]
[1767886752091,0.846,3094.3,3093.2,1.06208847]
[1767886753893,4.07775936,3094.3,3093.3,6.4655869]
[1767886754094,0.40775398,3094.4,3093.4,0.92156363]
[1767886754297,0.846,3094.8,3093.6,0.92156363]
[1767886754482,3.23095481,3095.1,3093.6,0.92156363]
[1767886754803,3.23083518,3095.2,3093.8,0.92156363]
[1767886755106,4.22754687,3095.2,3093.7,0.845]
[1767886755405,0.99671169,3095.1,3093.7,0.845]
[1767886755705,1.83118828,3095.1,3093.7,0.845]
[1767886756006,1.83118828,3095.1,3093.8,6.46454198]
[1767886756204,3.59037224,3095.8,3093.8,6.46454198]
[1767886756205,0.846,3095.4,3093.8,10.6183766]
[1767886756370,0.68416171,3095.4,3093.9,0.92156363]
[1767886756571,0.0403838,3095.3,3093.9,0.92156363]
[1767886756799,0.002,3095.0,3093.9,0.92156363]
[1767886758005,6.46224432,3094.9,3093.6,6.4649599]
[1767886758206,6.46224432,3094.9,3093.6,7.22025934]
[1767886758396,3.59237224,3095.0,3093.7,0.92156363]
[1767886758397,3.23307012,3095.0,3093.7,0.92156363]
[1767886758600,4.07907012,3095.0,3093.7,0.92156363]
[1767886759197,0.002,3095.0,3093.7,0.92156363]
[1767886759514,0.002,3095.0,3093.9,0.92156363]
[1767886759696,3.23200205,3096.0,3093.9,0.92156363]
[1767886759697,3.23009708,3095.9,3094.4,0.92156363]
[1767886759897,0.04037728,3095.8,3094.5,0.92156363]
[1767886760096,3.23028717,3095.7,3094.6,3.2314354]
[1767886760297,6.46057434,3095.7,3094.5,3.23150891]
[1767886760500,0.64605743,3095.6,3094.5,7.10936055]
[1767886761103,0.64605743,3095.6,3094.5,3.87782073]
[1767886761678,0.64605743,3095.6,3094.5,7.10936055]
[1767886761907,0.002,3096.0,3094.6,0.92156363]
[1767886762112,0.848,3096.0,3094.7,6.46266196]
[1767886762299,0.88837467,3096.0,3094.7,3.23133098]
[1767886762503,0.848,3096.0,3094.8,0.92156363]
[1767886762816,0.002,3096.0,3094.8,0.92156363]
[1767886763112,0.002,3096.0,3095.0,0.92156363]
[1767886764125,0.002,3096.0,3095.1,6.46182674]
[1767886764698,0.002,3096.0,3094.9,1.14605566]
[1767886764896,0.848,3096.0,3094.6,0.92156363]
[1767886765098,0.848,3096.0,3094.9,3.23108173]
[1767886765384,0.04037598,3095.9,3095.0,3.23098524]
[1767886765583,0.04037598,3095.9,3094.6,0.92156363]
[1767886765781,4.58708393,3095.8,3094.4,6.49]
[1767886766093,0.46274599,3095.7,3094.6,3.23141364]
[1767886766298,3.23039152,3095.6,3094.5,3.23152448]
[1767886767111,6.46078304,3095.6,3094.5,3.23152448]
[1767886767692,3.23039152,3095.6,3094.5,6.4630643]
[1767886767902,0.848,3096.0,3094.6,0.92156363]
[1767886768097,6.50064308,3095.9,3094.6,0.92156363]
[1767886768300,0.73486431,3095.8,3094.6,3.23134284]
[1767886769421,0.73486431,3095.8,3094.6,7.38434187]
[1767886769624,0.73486431,3095.8,3094.6,3.23134284]
[1767886769841,0.73486431,3095.8,3094.6,6.46277824]
[1767886770029,0.73486431,3095.8,3094.9,0.001]
[1767886770205,4.07802864,3096.0,3094.9,0.001]
[1767886770408,0.002,3095.7,3094.9,0.92256363]
[1767886772010,0.002,3096.0,3094.9,0.001]
[1767886772841,0.002,3096.0,3094.9,3.59137224]
[1767886773023,0.002,3096.0,3094.9,4.52566289]
[1767886773223,0.002,3096.0,3095.0,1.75472498]
[1767886773546,0.002,3096.0,3095.1,0.845]
[1767886774311,0.002,3096.0,3095.2,6.46161798]
[1767886776444,0.002,3096.0,3095.3,0.93429065]
[1767886778252,0.002,3096.0,3095.4,6.46120048]
[1767886778430,0.002,3096.0,3095.5,0.73954911]
[1767886779362,0.002,3096.0,3095.5,1.67383976]
[1767886779564,0.002,3096.4,3095.6,0.93429065]
[1767886780222,0.002,3096.4,3095.7,6.46057434]
[1767886781048,0.002,3096.4,3095.7,3.23028717]
[1767886781264,0.002,3096.4,3095.8,0.739496]
[1767886782326,0.002,3096.4,3095.2,0.93429065]
[1767886782664,0.002,3096.4,3095.6,3.23033735]
[1767886783319,0.002,3096.4,3095.4,3.23056555]
[1767886783320,0.002,3096.4,3095.3,1.77929065]
[1767886783524,0.002,3096.4,3095.7,3.2302176]
[1767886784045,0.002,3096.4,3095.8,3.23015908]
[1767886784442,0.002,3096.1,3095.6,0.001]
[1767886784740,3.22903548,3096.9,3095.6,0.001]
[1767886784741,4.07104535,3096.9,3095.6,0.001]
[1767886784940,0.04036424,3096.8,3095.6,0.93529065]
[1767886785150,0.04036424,3096.8,3095.6,0.001]
[1767886785151,0.97295739,3096.8,3095.6,0.001]
[1767886786485,0.97295739,3096.6,3095.6,0.001]
[1767886786754,0.97295739,3096.4,3095.6,0.001]
[1767886786956,0.88637076,3096.3,3095.6,0.001]
[1767886787136,0.846,3096.3,3095.6,0.001]
[1767886788354,3.22924403,3096.7,3095.6,0.93529065]
[1767886788525,0.846,3097.0,3095.8,0.93429065]
[1767886788729,0.18209574,3096.9,3095.9,0.7394865]
[1767886788921,0.002,3097.1,3096.0,0.93429065]
[1767886789557,0.002,3097.1,3096.0,1.03097128]
[1767886789920,0.002,3097.1,3096.1,0.845]
[1767886790156,0.002,3097.1,3095.9,0.7394865]
[1767886790157,3.27123505,3097.1,3095.9,0.7394865]
[1767886790475,3.23087472,3097.1,3096.0,7.39423897]
[1767886790626,0.002,3097.1,3096.1,0.81337255]
[1767886791556,0.002,3097.1,3096.0,6.45994832]
[1767886792436,0.002,3097.1,3096.0,3.22997416]
[1767886792756,0.002,3097.1,3095.9,3.230064]
[1767886793458,0.002,3097.1,3095.9,6.46014249]
[1767886793660,0.002,3097.1,3095.9,3.230064]
[1767886793952,0.73054935,3097.0,3095.9,3.230064]
[1767886794130,0.73054935,3097.0,3095.9,6.46014249]
[1767886794341,0.73054935,3097.0,3095.9,7.39443314]
[1767886794528,0.848,3097.1,3096.0,0.93429065]
[1767886794729,4.11719069,3097.1,3096.0,0.93429065]
[1767886795074,0.97295739,3097.0,3095.7,3.23027829]
[1767886795366,0.97295739,3096.8,3095.6,0.001]
[1767886795529,0.97295739,3096.8,3095.6,3.2313378]
[1767886795731,1.01332294,3096.7,3095.6,0.001]
[1767886797026,6.45869662,3096.6,3095.6,0.001]
[1767886797233,1.85932554,3096.5,3095.6,0.001]
[1767886797431,1.85932554,3096.5,3095.9,0.001]
[1767886797633,0.97295739,3096.4,3095.6,0.001]
[1767886797846,1.1992607,3096.3,3095.6,0.001]
[1767886798076,1.15888994,3096.3,3095.6,0.001]
[1767886798561,1.1992607,3096.3,3095.6,0.001]
[1767886799264,3.22976551,3096.2,3095.6,0.001]
[1767886799465,0.22630331,3096.3,3095.6,0.001]
[1767886799775,4.07550783,3096.5,3095.6,0.001]
[1767886800134,0.002,3097.1,3095.6,0.93529065]
[1767886800344,0.002,3097.1,3095.8,0.93429065]
[1767886801048,0.002,3097.1,3096.0,0.93429065]
[1767886801368,0.002,3097.1,3096.2,0.93429065]
[1767886801658,0.04236033,3097.1,3096.0,3.22995697]
[1767886802059,0.002,3097.1,3096.0,3.22995697]
[1767886802260,0.002,3097.1,3096.0,6.45993113]
[1767886802657,0.002,3097.1,3096.2,0.9251474]
[1767886802863,5.91e-06,3097.6,3096.3,0.9251474]
[1767886803062,6.45684759,3097.5,3096.3,0.17701474]
[1767886803367,6.45684759,3097.5,3096.0,6.45993113]
[1767886803368,6.45723694,3097.3,3096.0,3.22993807]
[1767886803571,0.99660197,3097.2,3095.5,0.9251474]
[1767886803736,0.95624294,3097.0,3095.5,0.9251474]
[1767886803938,0.88636294,3096.9,3095.6,3.23138011]
[1767886804144,0.846,3096.9,3095.8,3.23013949]
[1767886804364,0.846,3096.9,3095.9,0.32301395]
[1767886804365,0.0402007,3096.8,3095.9,0.32301395]
[1767886804755,0.0402007,3096.8,3095.6,3.23136398]
[1767886804756,0.95624294,3096.7,3095.6,0.001]
[1767886805090,0.95624294,3096.5,3095.6,0.001]
[1767886805375,0.9563691,3096.4,3095.6,0.001]
[1767886805842,0.9563691,3096.8,3095.6,0.001]
[1767886806268,4.18558732,3096.8,3095.6,0.001]
[1767886806668,0.9563691,3096.8,3095.6,0.001]
[1767886807486,4.18553366,3096.8,3095.6,0.001]
[1767886807653,4.18553366,3096.8,3095.6,0.97028007]
[1767886807854,0.9563691,3096.8,3095.6,0.97028007]
[1767886808087,5.91e-06,3097.6,3095.8,0.92001448]
[1767886808401,3.22833643,3097.6,3096.0,3.59037224]
[1767886808597,4.18470553,3097.6,3096.0,3.59037224]
[1767886808763,0.95637501,3097.6,3096.1,0.46070674]
[1767886809096,5.91e-06,3097.6,3096.2,0.92001448]
[1767886809304,5.91e-06,3097.6,3096.4,0.92001448]
[1767886809461,5.91e-06,3097.6,3096.6,0.92001448]
[1767886811590,5.91e-06,3097.6,3096.7,6.45848806]
[1767886811790,5.91e-06,3097.6,3096.8,0.73785025]
[1767886812305,5.91e-06,3097.6,3096.4,3.22950751]
[1767886812306,0.88635973,3097.6,3096.4,3.22950751]
[1767886812462,5.43310107,3097.6,3095.9,0.001]
[1767886812663,0.9563691,3097.5,3095.9,0.001]
[1767886812864,0.04035642,3097.4,3096.2,3.22970396]
[1767886813208,0.04035642,3097.4,3096.2,3.22973972]
[1767886813497,0.18427314,3097.4,3096.3,3.22963767]
[1767886813693,6.45723694,3097.3,3096.0,6.45991557]
[1767886813889,3.22861847,3097.3,3096.0,7.37993005]
[1767886814082,5.91e-06,3097.6,3096.2,0.92001448]
[1767886815103,3.22831386,3097.6,3096.2,0.92001448]
[1767886815395,5.91e-06,3097.6,3096.4,0.92001448]
[1767886815705,5.91e-06,3097.6,3096.6,0.92001448]
[1767886815874,5.91e-06,3097.6,3096.8,0.92001448]
[1767886817585,0.002,3098.6,3097.3,0.92001448]
[1767886817785,0.002,3098.6,3097.5,0.92001448]
[1767886817987,0.002,3098.6,3097.6,0.82220429]
[1767886818190,0.002,3098.6,3097.4,0.845]
[1767886818391,0.002,3098.6,3097.4,1.76501448]
[1767886819774,0.002,3098.6,3097.5,7.37683448]
[1767886820377,0.002,3098.6,3097.6,0.92001448]
[1767886821896,0.002,3098.6,3097.7,3.22820156]
[1767886822106,0.002,3098.6,3097.6,4.14827815]
[1767886822318,0.002,3098.6,3097.6,3.22830403]
[1767886822319,0.002,3098.3,3097.6,3.22830403]
[1767886823010,0.002,3098.3,3097.4,0.844]
[1767886823209,0.002,3098.3,3097.6,3.22828224]
[1767886823417,0.002,3098.3,3097.6,3.63551046]
[1767886823914,0.002,3098.3,3097.6,0.40722822]
[1767886824203,0.002,3098.3,3097.5,3.22836967]
[1767886824396,0.002,3098.3,3097.6,3.22827001]
[1767886824592,0.002,3098.3,3097.6,6.45657579]
[1767886824778,0.002,3098.9,3097.7,0.92001448]
[1767886825173,3.22896774,3098.9,3097.7,0.92001448]
[1767886825509,0.002,3098.9,3097.8,1.65767351]
[1767886825677,0.002,3099.1,3098.0,0.92001448]
[1767886825879,0.002,3099.1,3098.2,0.92001448]
[1767886827707,0.002,3099.1,3098.0,3.22784438]
[1767886827914,0.002,3099.1,3097.9,3.22797839]
[1767886828098,1.0104948,3099.1,3098.0,0.57296519]
[1767886830334,18.45539097,3099.0,3097.4,7.41001448]
[1767886830626,0.99670599,3098.9,3097.4,6.49]
[1767886830992,0.9563691,3098.9,3097.4,6.49]
[1767886831503,0.9563691,3098.9,3097.1,0.844]
[1767886831708,0.9563691,3098.0,3096.3,0.17650145]
[1767886831911,0.845,3097.9,3096.3,1.94051593]
[1767886832106,3.22809735,3097.8,3096.4,7.37912828]
[1767886832305,4.07303871,3097.9,3096.5,0.92001448]
[1767886832507,3.22729132,3098.6,3096.7,0.96047829]
[1767886832720,0.845,3098.4,3096.7,0.96047829]
[1767886832927,0.845,3098.4,3096.7,1.05715892]